[Event "Titled Tuesday Blitz August 15 Early 2023"]
[White "Thecourseoisildur"]
[Black "Schmakel, Sam"]
[BlackFideId "2039311"]
[WhiteElo "2564"]
[BlackElo "2764"]
[Result "1-0"]
[Round "8"]
[TimeControl "180+1"]
[Date "2023.08.15"]
[WhiteClock "0:00:02"]
[BlackClock "0:00:02"]
[Board "46"]

1. e4 {[%clk 0:02:50]}  e6 {[%clk 0:02:50]} 2. d4 {[%clk 0:02:49]}  d5 {[%clk 0:02:51]} 3. e5 {[%clk 0:02:49]}  c5 {[%clk 0:02:48]} 4. c3 {[%clk 0:02:50]}  Nc6 {[%clk 0:02:48]} 5. Nf3 {[%clk 0:02:50]}  Qb6 {[%clk 0:02:36]} 6. a3 {[%clk 0:02:50]}  Nge7 {[%clk 0:02:27]} 7. dxc5 {[%clk 0:02:43]}  Qc7 {[%clk 0:02:27]} 8. Bb5 {[%clk 0:02:34]}  Bd7 {[%clk 0:02:22]} 9. Qe2 {[%clk 0:02:29]}  Ng6 {[%clk 0:02:15]} 10. Bxc6 {[%clk 0:02:28]}  Bxc6 {[%clk 0:02:14]} 11. b4 {[%clk 0:02:26]}  Be7 {[%clk 0:02:00]} 12. Nbd2 {[%clk 0:02:18]}  Nf4 {[%clk 0:01:43]} 13. Qf1 {[%clk 0:02:17]}  a6 {[%clk 0:01:38]} 14. a4 {[%clk 0:02:16]}  Qd7 {[%clk 0:01:37]} 15. Nb3 {[%clk 0:01:29]}  Bxa4 {[%clk 0:01:27]} 16. Bxf4 {[%clk 0:01:28]}  Bxb3 {[%clk 0:01:27]} 17. Qd3 {[%clk 0:01:29]}  Bc4 {[%clk 0:01:21]} 18. Qd2 {[%clk 0:01:25]}  O-O {[%clk 0:01:18]} 19. h4 {[%clk 0:01:21]}  a5 {[%clk 0:01:08]} 20. bxa5 {[%clk 0:01:14]}  Bxc5 {[%clk 0:01:07]} 21. h5 {[%clk 0:01:14]}  b6 {[%clk 0:00:56]} 22. h6 {[%clk 0:01:13]}  g6 {[%clk 0:00:56]} 23. Be3 {[%clk 0:01:08]}  Bxe3 {[%clk 0:00:45]} 24. Qxe3 {[%clk 0:01:07]}  bxa5 {[%clk 0:00:44]} 25. Qg5 {[%clk 0:01:06]}  Qd8 {[%clk 0:00:44]} 26. Qg4 {[%clk 0:01:00]}  Bd3 {[%clk 0:00:35]} 27. Nd4 {[%clk 0:00:53]}  Qc7 {[%clk 0:00:31]} 28. Kd2 {[%clk 0:00:42]}  Bf5 {[%clk 0:00:31]} 29. Nxf5 {[%clk 0:00:35]}  exf5 {[%clk 0:00:32]} 30. Qd4 {[%clk 0:00:35]}  a4 {[%clk 0:00:25]} 31. Rhb1 {[%clk 0:00:31]}  a3 {[%clk 0:00:25]} 32. Rb3 {[%clk 0:00:30]}  Qe7 {[%clk 0:00:08]} 33. Rab1 {[%clk 0:00:21]}  Qg5+ {[%clk 0:00:07]} 34. Ke2 {[%clk 0:00:10]}  a2 {[%clk 0:00:07]} 35. Ra1 {[%clk 0:00:10]}  Qxh6 {[%clk 0:00:08]} 36. Rb2 {[%clk 0:00:08]}  Qh5+ {[%clk 0:00:08]} 37. f3 {[%clk 0:00:08]}  Qg5 {[%clk 0:00:08]} 38. Kf2 {[%clk 0:00:07]}  Rfc8 {[%clk 0:00:06]} 39. Rbxa2 {[%clk 0:00:08]}  Rxa2+ {[%clk 0:00:06]} 40. Rxa2 {[%clk 0:00:09]}  Qd8 {[%clk 0:00:06]} 41. e6 {[%clk 0:00:08]}  Qe7 {[%clk 0:00:06]} 42. exf7+ {[%clk 0:00:06]}  Qxf7 {[%clk 0:00:07]} 43. Ra7 {[%clk 0:00:05]}  Qf8 {[%clk 0:00:03]} 44. Qxd5+ {[%clk 0:00:05]}  Kh8 {[%clk 0:00:03]} 45. Qe5+ {[%clk 0:00:03]}  Kg8 {[%clk 0:00:04]} 46. Qe6+ {[%clk 0:00:03]}  Kh8 {[%clk 0:00:04]} 47. Rf7 {[%clk 0:00:03]}  Qc5+ {[%clk 0:00:03]} 48. Kg3 {[%clk 0:00:02]}  Qxc3 {[%clk 0:00:03]} 49. Qe7 {[%clk 0:00:01]}  Qc4 {[%clk 0:00:02]} 50. Rxh7+ {[%clk 0:00:02]}  Kg8 {[%clk 0:00:02]} 51. Qg7# {[%clk 0:00:02]} 1-0


[Site "https://www.chess.com"]

[Event "Titled Tuesday Blitz August 15 Early 2023"]
[White "Dimitrov, Atanas"]
[Black "Jaskolka, Tomasz"]
[WhiteFideId "2901315"]
[BlackFideId "1170791"]
[WhiteElo "2732"]
[BlackElo "2556"]
[Result "1-0"]
[Round "8"]
[TimeControl "180+1"]
[Date "2023.08.15"]
[WhiteClock "0:00:28"]
[BlackClock "0:00:17"]
[Board "49"]

1. Nf3 {[%clk 0:03:00]}  d5 {[%clk 0:02:59]} 2. e3 {[%clk 0:03:00]}  c6 {[%clk 0:02:53]} 3. c4 {[%clk 0:03:00]}  Nf6 {[%clk 0:02:53]} 4. Nc3 {[%clk 0:03:00]}  a6 {[%clk 0:02:52]} 5. b3 {[%clk 0:03:00]}  Bg4 {[%clk 0:02:50]} 6. Be2 {[%clk 0:03:00]}  e6 {[%clk 0:02:50]} 7. O-O {[%clk 0:02:59]}  Bd6 {[%clk 0:02:49]} 8. d4 {[%clk 0:02:57]}  O-O {[%clk 0:02:48]} 9. Bb2 {[%clk 0:02:57]}  Nbd7 {[%clk 0:02:43]} 10. Rc1 {[%clk 0:02:58]}  Re8 {[%clk 0:02:31]} 11. h3 {[%clk 0:02:56]}  Bxf3 {[%clk 0:02:30]} 12. Bxf3 {[%clk 0:02:56]}  b5 {[%clk 0:02:27]} 13. e4 {[%clk 0:02:51]}  b4 {[%clk 0:02:21]} 14. e5 {[%clk 0:02:37]}  bxc3 {[%clk 0:02:20]} 15. Bxc3 {[%clk 0:02:34]}  Ba3 {[%clk 0:02:19]} 16. exf6 {[%clk 0:02:30]}  Bxc1 {[%clk 0:02:20]} 17. Qxc1 {[%clk 0:02:31]}  Qxf6 {[%clk 0:02:10]} 18. Qe3 {[%clk 0:02:29]}  a5 {[%clk 0:01:59]} 19. Rc1 {[%clk 0:02:27]}  a4 {[%clk 0:01:58]} 20. Qd2 {[%clk 0:02:25]}  axb3 {[%clk 0:01:58]} 21. axb3 {[%clk 0:02:26]}  Reb8 {[%clk 0:01:57]} 22. Bb4 {[%clk 0:02:26]}  h6 {[%clk 0:01:36]} 23. Qc3 {[%clk 0:02:17]}  c5 {[%clk 0:01:11]} 24. dxc5 {[%clk 0:02:09]}  Qxc3 {[%clk 0:01:12]} 25. Bxc3 {[%clk 0:02:08]}  Nxc5 {[%clk 0:01:11]} 26. cxd5 {[%clk 0:02:00]}  Nxb3 {[%clk 0:01:06]} 27. Rb1 {[%clk 0:01:50]}  Nc5 {[%clk 0:01:04]} 28. Rf1 {[%clk 0:01:41]}  Ra3 {[%clk 0:00:58]} 29. Be5 {[%clk 0:01:39]}  Rd8 {[%clk 0:00:52]} 30. Bc7 {[%clk 0:01:37]}  Rd7 {[%clk 0:00:52]} 31. d6 {[%clk 0:01:33]}  Na6 {[%clk 0:00:42]} 32. Bc6 {[%clk 0:01:31]}  Rxc7 {[%clk 0:00:43]} 33. dxc7 {[%clk 0:01:28]}  Nxc7 {[%clk 0:00:44]} 34. Rd1 {[%clk 0:01:26]}  Ra7 {[%clk 0:00:37]} 35. Rd7 {[%clk 0:01:19]}  Ra1+ {[%clk 0:00:18]} 36. Kh2 {[%clk 0:01:18]}  Na6 {[%clk 0:00:19]} 37. Rd8+ {[%clk 0:01:04]}  Kh7 {[%clk 0:00:19]} 38. Ra8 {[%clk 0:01:05]}  Ra2 {[%clk 0:00:18]} 39. Ra7 {[%clk 0:00:58]}  f6 {[%clk 0:00:16]} 40. Bd7 {[%clk 0:00:34]}  e5 {[%clk 0:00:15]} 41. Bf5+ {[%clk 0:00:32]}  Kg8 {[%clk 0:00:14]} 42. Be6+ {[%clk 0:00:32]}  Kh7 {[%clk 0:00:15]} 43. Bxa2 {[%clk 0:00:33]}  Nc5 {[%clk 0:00:15]} 44. Bb1+ {[%clk 0:00:32]}  e4 {[%clk 0:00:15]} 45. Rc7 {[%clk 0:00:31]}  Ne6 {[%clk 0:00:14]} 46. Bxe4+ {[%clk 0:00:31]}  Kg8 {[%clk 0:00:15]} 47. Bd5 {[%clk 0:00:31]}  h5 {[%clk 0:00:14]} 48. Bxe6+ {[%clk 0:00:31]}  Kh7 {[%clk 0:00:15]} 49. f4 {[%clk 0:00:29]}  h4 {[%clk 0:00:15]} 50. Kg1 {[%clk 0:00:28]}  Kh6 {[%clk 0:00:15]} 51. Kf2 {[%clk 0:00:29]}  Kh5 {[%clk 0:00:16]} 52. Kf3 {[%clk 0:00:29]}  g6 {[%clk 0:00:17]} 53. Rh7# {[%clk 0:00:28]} 1-0


[Site "https://www.chess.com"]

[Event "Titled Tuesday Blitz August 15 Early 2023"]
[White "RrainlessBobot"]
[Black "Skvortsov, Andrei"]
[BlackFideId "24108600"]
[WhiteElo "2489"]
[BlackElo "2695"]
[Result "1-0"]
[Round "8"]
[TimeControl "180+1"]
[Date "2023.08.15"]
[WhiteClock "0:00:46"]
[BlackClock "0:00:14"]
[Board "52"]

1. Nf3 {[%clk 0:02:59]}  e6 {[%clk 0:02:58]} 2. g3 {[%clk 0:02:58]}  b5 {[%clk 0:02:57]} 3. Bg2 {[%clk 0:02:58]}  Bb7 {[%clk 0:02:57]} 4. O-O {[%clk 0:02:59]}  d6 {[%clk 0:02:57]} 5. d3 {[%clk 0:02:58]}  Nd7 {[%clk 0:02:57]} 6. e4 {[%clk 0:02:58]}  c5 {[%clk 0:02:58]} 7. a4 {[%clk 0:02:57]}  a6 {[%clk 0:02:57]} 8. Na3 {[%clk 0:02:53]}  b4 {[%clk 0:02:52]} 9. Nc4 {[%clk 0:02:53]}  Qc7 {[%clk 0:02:52]} 10. Re1 {[%clk 0:02:44]}  Ngf6 {[%clk 0:02:47]} 11. Bf4 {[%clk 0:02:38]}  Ng4 {[%clk 0:02:37]} 12. e5 {[%clk 0:02:28]}  dxe5 {[%clk 0:02:33]} 13. Nfxe5 {[%clk 0:02:20]}  Ngxe5 {[%clk 0:02:33]} 14. Bxb7 {[%clk 0:02:16]}  Qxb7 {[%clk 0:02:32]} 15. Nxe5 {[%clk 0:02:16]}  Nf6 {[%clk 0:02:25]} 16. Nc4 {[%clk 0:02:08]}  Rd8 {[%clk 0:02:24]} 17. Be5 {[%clk 0:01:33]}  Be7 {[%clk 0:02:22]} 18. Bxf6 {[%clk 0:01:32]}  Bxf6 {[%clk 0:02:21]} 19. Qh5 {[%clk 0:01:33]}  Rd5 {[%clk 0:02:16]} 20. Rxe6+ {[%clk 0:01:14]}  Kd8 {[%clk 0:00:55]} 21. Rb6 {[%clk 0:01:13]}  Qd7 {[%clk 0:00:29]} 22. Qf3 {[%clk 0:01:06]}  Re8 {[%clk 0:00:28]} 23. Rb8+ {[%clk 0:01:01]}  Kc7 {[%clk 0:00:21]} 24. Rxe8 {[%clk 0:00:57]}  Rf5 {[%clk 0:00:14]} 25. Qa8 {[%clk 0:00:46]} 1-0


[Site "https://www.chess.com"]

[Event "Titled Tuesday Blitz August 15 Early 2023"]
[White "Dehtiarov, Roman"]
[Black "Lach, Aleksandra"]
[WhiteFideId "14186640"]
[BlackFideId "1134299"]
[WhiteElo "2669"]
[BlackElo "2424"]
[Result "1-0"]
[Round "8"]
[TimeControl "180+1"]
[Date "2023.08.15"]
[WhiteClock "0:00:29"]
[BlackClock "0:00:43"]
[Board "54"]

1. e4 {[%clk 0:03:00]}  c6 {[%clk 0:02:57]} 2. Nc3 {[%clk 0:03:00]}  g6 {[%clk 0:02:49]} 3. Nf3 {[%clk 0:02:59]}  Bg7 {[%clk 0:02:50]} 4. d4 {[%clk 0:02:58]}  d6 {[%clk 0:02:50]} 5. Bd3 {[%clk 0:02:55]}  Nf6 {[%clk 0:02:49]} 6. O-O {[%clk 0:02:53]}  O-O {[%clk 0:02:49]} 7. h3 {[%clk 0:02:49]}  b5 {[%clk 0:02:38]} 8. a3 {[%clk 0:02:48]}  a5 {[%clk 0:02:37]} 9. Be3 {[%clk 0:02:48]}  Bb7 {[%clk 0:02:36]} 10. Qd2 {[%clk 0:02:49]}  Nbd7 {[%clk 0:02:35]} 11. Bh6 {[%clk 0:02:46]}  b4 {[%clk 0:02:31]} 12. axb4 {[%clk 0:02:43]}  axb4 {[%clk 0:02:32]} 13. Ne2 {[%clk 0:02:42]}  c5 {[%clk 0:02:29]} 14. Bxg7 {[%clk 0:02:40]}  Kxg7 {[%clk 0:02:29]} 15. e5 {[%clk 0:02:33]}  dxe5 {[%clk 0:02:21]} 16. dxe5 {[%clk 0:02:34]}  Nd5 {[%clk 0:02:15]} 17. e6 {[%clk 0:02:17]}  fxe6 {[%clk 0:02:10]} 18. Ng5 {[%clk 0:02:16]}  Rf6 {[%clk 0:02:06]} 19. Be4 {[%clk 0:02:13]}  Nf8 {[%clk 0:02:01]} 20. Rxa8 {[%clk 0:02:04]}  Qxa8 {[%clk 0:01:56]} 21. Rd1 {[%clk 0:02:03]}  h6 {[%clk 0:01:54]} 22. Nf3 {[%clk 0:01:56]}  Nb6 {[%clk 0:01:49]} 23. Bxb7 {[%clk 0:01:53]}  Qxb7 {[%clk 0:01:50]} 24. Qe3 {[%clk 0:01:48]}  Nc4 {[%clk 0:01:30]} 25. Qxc5 {[%clk 0:01:39]}  Nxb2 {[%clk 0:01:29]} 26. Rb1 {[%clk 0:01:37]}  Qe4 {[%clk 0:01:19]} 27. Ng3 {[%clk 0:01:19]}  Qf4 {[%clk 0:01:18]} 28. Ne5 {[%clk 0:00:49]}  Na4 {[%clk 0:00:58]} 29. Qxe7+ {[%clk 0:00:49]}  Kg8 {[%clk 0:00:58]} 30. Ng4 {[%clk 0:00:47]}  Rf7 {[%clk 0:00:56]} 31. Qxb4 {[%clk 0:00:43]}  Qxb4 {[%clk 0:00:56]} 32. Rxb4 {[%clk 0:00:44]}  Nc3 {[%clk 0:00:55]} 33. Nxh6+ {[%clk 0:00:44]}  Kg7 {[%clk 0:00:54]} 34. Nxf7 {[%clk 0:00:45]}  Kxf7 {[%clk 0:00:54]} 35. Rb7+ {[%clk 0:00:43]}  Kf6 {[%clk 0:00:54]} 36. Rc7 {[%clk 0:00:42]}  Nd5 {[%clk 0:00:53]} 37. Rc8 {[%clk 0:00:40]}  Nd7 {[%clk 0:00:54]} 38. c4 {[%clk 0:00:39]}  Nc3 {[%clk 0:00:52]} 39. c5 {[%clk 0:00:38]}  Ke7 {[%clk 0:00:51]} 40. c6 {[%clk 0:00:38]}  Nb6 {[%clk 0:00:51]} 41. Rb8 {[%clk 0:00:35]}  Nbd5 {[%clk 0:00:43]} 42. Rg8 {[%clk 0:00:29]} 1-0


[Site "https://www.chess.com"]

[Event "Titled Tuesday Blitz August 15 Early 2023"]
[White "Huschenbeth, Niclas"]
[Black "Smiechu"]
[WhiteFideId "24604747"]
[WhiteElo "2666"]
[BlackElo "2415"]
[Result "1-0"]
[Round "8"]
[TimeControl "180+1"]
[Date "2023.08.15"]
[WhiteClock "0:00:15"]
[BlackClock "0:00:15"]
[Board "55"]

1. e4 {[%clk 0:03:00]}  c5 {[%clk 0:02:59]} 2. Nf3 {[%clk 0:03:00]}  g6 {[%clk 0:02:59]} 3. d4 {[%clk 0:03:00]}  cxd4 {[%clk 0:03:00]} 4. Nxd4 {[%clk 0:03:00]}  Nc6 {[%clk 0:03:00]} 5. c4 {[%clk 0:03:00]}  Nf6 {[%clk 0:03:00]} 6. Nc3 {[%clk 0:03:00]}  Nxd4 {[%clk 0:03:01]} 7. Qxd4 {[%clk 0:03:01]}  d6 {[%clk 0:03:01]} 8. Be2 {[%clk 0:03:01]}  Bg7 {[%clk 0:03:02]} 9. Be3 {[%clk 0:03:01]}  O-O {[%clk 0:03:02]} 10. Qd2 {[%clk 0:03:01]}  a5 {[%clk 0:03:03]} 11. O-O {[%clk 0:03:01]}  a4 {[%clk 0:03:03]} 12. Bd4 {[%clk 0:03:01]}  Qa5 {[%clk 0:03:01]} 13. Rad1 {[%clk 0:03:01]}  Be6 {[%clk 0:02:59]} 14. f4 {[%clk 0:02:58]}  Rfc8 {[%clk 0:02:59]} 15. b3 {[%clk 0:02:58]}  axb3 {[%clk 0:02:59]} 16. axb3 {[%clk 0:02:59]}  Qb4 {[%clk 0:02:58]} 17. f5 {[%clk 0:02:46]}  Bd7 {[%clk 0:02:52]} 18. Bxf6 {[%clk 0:02:45]}  Bxf6 {[%clk 0:02:52]} 19. Nd5 {[%clk 0:02:45]}  Qxd2 {[%clk 0:02:47]} 20. Nxf6+ {[%clk 0:02:45]}  Kg7 {[%clk 0:02:43]} 21. Rxd2 {[%clk 0:02:29]}  Kxf6 {[%clk 0:02:39]} 22. fxg6+ {[%clk 0:02:29]}  Kxg6 {[%clk 0:02:40]} 23. e5 {[%clk 0:02:29]}  Bc6 {[%clk 0:01:24]} 24. exd6 {[%clk 0:02:16]}  Rd8 {[%clk 0:01:24]} 25. Rfd1 {[%clk 0:02:09]}  exd6 {[%clk 0:01:20]} 26. Rxd6+ {[%clk 0:02:10]}  Rxd6 {[%clk 0:01:20]} 27. Rxd6+ {[%clk 0:02:11]}  Kf5 {[%clk 0:01:15]} 28. Rd3 {[%clk 0:01:14]}  Ra2 {[%clk 0:01:10]} 29. Bf3 {[%clk 0:01:14]}  Rb2 {[%clk 0:01:01]} 30. h3 {[%clk 0:01:06]}  Be4 {[%clk 0:00:57]} 31. Rd7 {[%clk 0:01:00]}  Rxb3 {[%clk 0:00:48]} 32. Bxe4+ {[%clk 0:00:35]}  Kxe4 {[%clk 0:00:46]} 33. Rxf7 {[%clk 0:00:36]}  h5 {[%clk 0:00:46]} 34. Rh7 {[%clk 0:00:34]}  b5 {[%clk 0:00:36]} 35. c5 {[%clk 0:00:17]}  b4 {[%clk 0:00:35]} 36. Rxh5 {[%clk 0:00:17]}  Rb1+ {[%clk 0:00:35]} 37. Kh2 {[%clk 0:00:17]}  b3 {[%clk 0:00:36]} 38. c6 {[%clk 0:00:16]}  Rc1 {[%clk 0:00:35]} 39. Rb5 {[%clk 0:00:16]}  Rxc6 {[%clk 0:00:29]} 40. Rxb3 {[%clk 0:00:16]}  Kf4 {[%clk 0:00:29]} 41. Rb5 {[%clk 0:00:16]}  Rc2 {[%clk 0:00:26]} 42. Rb8 {[%clk 0:00:13]}  Kg5 {[%clk 0:00:26]} 43. Rg8+ {[%clk 0:00:14]}  Kh4 {[%clk 0:00:24]} 44. Rg4+ {[%clk 0:00:15]}  Kh5 {[%clk 0:00:24]} 45. Ra4 {[%clk 0:00:15]}  Kg5 {[%clk 0:00:24]} 46. h4+ {[%clk 0:00:15]}  Kh5 {[%clk 0:00:25]} 47. Kh3 {[%clk 0:00:16]}  Rc3+ {[%clk 0:00:25]} 48. g3 {[%clk 0:00:16]}  Rb3 {[%clk 0:00:25]} 49. Ra5+ {[%clk 0:00:17]}  Kh6 {[%clk 0:00:25]} 50. h5 {[%clk 0:00:17]}  Rb1 {[%clk 0:00:24]} 51. Kh4 {[%clk 0:00:13]}  Rh1+ {[%clk 0:00:23]} 52. Kg4 {[%clk 0:00:14]}  Rb1 {[%clk 0:00:23]} 53. Ra6+ {[%clk 0:00:14]}  Kg7 {[%clk 0:00:24]} 54. Kg5 {[%clk 0:00:14]}  Rb5+ {[%clk 0:00:23]} 55. Kh4 {[%clk 0:00:15]}  Kh7 {[%clk 0:00:22]} 56. g4 {[%clk 0:00:15]}  Kg7 {[%clk 0:00:22]} 57. h6+ {[%clk 0:00:15]}  Kh7 {[%clk 0:00:23]} 58. g5 {[%clk 0:00:16]}  Rc5 {[%clk 0:00:22]} 59. Kh5 {[%clk 0:00:15]}  Rc1 {[%clk 0:00:15]} 60. g6+ {[%clk 0:00:15]} 1-0


[Site "https://www.chess.com"]

[Event "Titled Tuesday Blitz August 15 Early 2023"]
[White "Pax-Pramana"]
[Black "Ter-Sahakyan, Samvel"]
[BlackFideId "13302531"]
[WhiteElo "2556"]
[BlackElo "2822"]
[Result "0-1"]
[Round "8"]
[TimeControl "180+1"]
[Date "2023.08.15"]
[WhiteClock "0:00:05"]
[BlackClock "0:00:06"]
[Board "56"]

1. e4 {[%clk 0:03:00]}  c5 {[%clk 0:02:58]} 2. Ne2 {[%clk 0:03:01]}  Nc6 {[%clk 0:02:54]} 3. Nbc3 {[%clk 0:02:58]}  Nf6 {[%clk 0:02:53]} 4. d3 {[%clk 0:02:51]}  g6 {[%clk 0:02:41]} 5. Be3 {[%clk 0:02:38]}  d6 {[%clk 0:02:32]} 6. f3 {[%clk 0:02:36]}  Bg7 {[%clk 0:02:27]} 7. d4 {[%clk 0:02:36]}  Qa5 {[%clk 0:02:15]} 8. Qd2 {[%clk 0:02:31]}  O-O {[%clk 0:02:12]} 9. O-O-O {[%clk 0:02:23]}  b5 {[%clk 0:02:07]} 10. Kb1 {[%clk 0:02:03]}  b4 {[%clk 0:01:47]} 11. Nd5 {[%clk 0:02:02]}  Rb8 {[%clk 0:01:45]} 12. g4 {[%clk 0:01:25]}  c4 {[%clk 0:01:33]} 13. Nxf6+ {[%clk 0:00:47]}  Bxf6 {[%clk 0:01:32]} 14. Nc1 {[%clk 0:00:42]}  c3 {[%clk 0:01:27]} 15. Qf2 {[%clk 0:00:42]}  cxb2 {[%clk 0:00:40]} 16. Nb3 {[%clk 0:00:43]}  Qc7 {[%clk 0:00:40]} 17. h4 {[%clk 0:00:31]}  a5 {[%clk 0:00:35]} 18. h5 {[%clk 0:00:31]}  g5 {[%clk 0:00:32]} 19. Nd2 {[%clk 0:00:11]}  a4 {[%clk 0:00:30]} 20. Bc4 {[%clk 0:00:11]}  Na5 {[%clk 0:00:29]} 21. Bd3 {[%clk 0:00:08]}  Be6 {[%clk 0:00:22]} 22. h6 {[%clk 0:00:05]}  Bxa2+ {[%clk 0:00:10]} 23. Kxa2 {[%clk 0:00:06]}  Qc3 {[%clk 0:00:10]} 24. Kb1 {[%clk 0:00:04]}  Qa3 {[%clk 0:00:10]} 25. Nb3 {[%clk 0:00:03]}  axb3 {[%clk 0:00:09]} 26. cxb3 {[%clk 0:00:03]}  Nxb3 {[%clk 0:00:09]} 27. Kc2 {[%clk 0:00:03]}  Rfc8+ {[%clk 0:00:08]} 28. Bc4 {[%clk 0:00:04]}  Rxc4+ {[%clk 0:00:08]} 29. Kd3 {[%clk 0:00:05]}  Nc5+ {[%clk 0:00:07]} 30. Kxc4 {[%clk 0:00:05]}  Qb3# {[%clk 0:00:06]} 0-1


[Site "https://www.chess.com"]

[Event "Titled Tuesday Blitz August 15 Early 2023"]
[White "Karamsetty, Jeevan"]
[Black "Stribuk, Artiom"]
[WhiteFideId "2025337"]
[BlackFideId "13515659"]
[WhiteElo "2545"]
[BlackElo "2735"]
[Result "0-1"]
[Round "8"]
[TimeControl "180+1"]
[Date "2023.08.15"]
[WhiteClock "0:00:00"]
[BlackClock "0:00:42"]
[Board "59"]

1. e4 {[%clk 0:03:00]}  e5 {[%clk 0:02:55]} 2. Nf3 {[%clk 0:03:00]}  Nc6 {[%clk 0:02:55]} 3. Bc4 {[%clk 0:03:00]}  Nf6 {[%clk 0:02:54]} 4. d4 {[%clk 0:02:52]}  exd4 {[%clk 0:02:51]} 5. e5 {[%clk 0:02:50]}  Ng4 {[%clk 0:02:49]} 6. Qe2 {[%clk 0:02:45]}  Qe7 {[%clk 0:02:26]} 7. Bf4 {[%clk 0:02:42]}  d6 {[%clk 0:02:23]} 8. Bb5 {[%clk 0:01:54]}  dxe5 {[%clk 0:02:10]} 9. Nxe5 {[%clk 0:01:52]}  Nxe5 {[%clk 0:02:07]} 10. Bxe5 {[%clk 0:01:52]}  Be6 {[%clk 0:01:59]} 11. Bxc6+ {[%clk 0:01:42]}  bxc6 {[%clk 0:01:59]} 12. Bxd4 {[%clk 0:01:40]}  Qg5 {[%clk 0:01:51]} 13. O-O {[%clk 0:01:34]}  Bd6 {[%clk 0:01:46]} 14. g3 {[%clk 0:01:27]}  h5 {[%clk 0:01:29]} 15. Nc3 {[%clk 0:01:25]}  h4 {[%clk 0:01:30]} 16. f4 {[%clk 0:01:16]}  Qf5 {[%clk 0:01:18]} 17. Ne4 {[%clk 0:00:59]}  hxg3 {[%clk 0:01:12]} 18. Nxg3 {[%clk 0:01:00]}  Qb5 {[%clk 0:00:45]} 19. Qxb5 {[%clk 0:00:37]}  cxb5 {[%clk 0:00:46]} 20. Bxg7 {[%clk 0:00:32]}  Bc5+ {[%clk 0:00:45]} 21. Kg2 {[%clk 0:00:27]}  Bd5+ {[%clk 0:00:45]} 22. Rf3 {[%clk 0:00:22]}  Bxf3+ {[%clk 0:00:46]} 23. Kxf3 {[%clk 0:00:23]}  Rxh2 {[%clk 0:00:46]} 24. Re1+ {[%clk 0:00:22]}  Kd7 {[%clk 0:00:46]} 25. Rd1+ {[%clk 0:00:16]}  Kc6 {[%clk 0:00:45]} 26. Rc1 {[%clk 0:00:06]}  Re8 {[%clk 0:00:45]} 27. c4 {[%clk 0:00:06]}  Re3+ {[%clk 0:00:44]} 28. Kg4 {[%clk 0:00:05]}  Rg2 {[%clk 0:00:45]} 29. cxb5+ {[%clk 0:00:05]}  Kxb5 {[%clk 0:00:44]} 30. a4+ {[%clk 0:00:06]}  Kb6 {[%clk 0:00:41]} 31. a5+ {[%clk 0:00:00]}  Kb5 {[%clk 0:00:42]} 0-1


[Site "https://www.chess.com"]

[Event "Titled Tuesday Blitz August 15 Early 2023"]
[White "Gritsenko, Nikolai"]
[Black "Degenbaev, Aziz"]
[WhiteFideId "14112493"]
[BlackFideId "13802640"]
[WhiteElo "2733"]
[BlackElo "2542"]
[Result "0-1"]
[Round "8"]
[TimeControl "180+1"]
[Date "2023.08.15"]
[WhiteClock "0:00:00"]
[BlackClock "0:00:05"]
[Board "60"]

1. d4 {[%clk 0:02:47]}  Nf6 {[%clk 0:02:59]} 2. Bg5 {[%clk 0:02:47]}  c5 {[%clk 0:02:59]} 3. Bxf6 {[%clk 0:02:46]}  gxf6 {[%clk 0:02:59]} 4. c3 {[%clk 0:02:47]}  Qb6 {[%clk 0:02:58]} 5. Qd2 {[%clk 0:02:46]}  f5 {[%clk 0:02:58]} 6. Nf3 {[%clk 0:02:44]}  Bg7 {[%clk 0:02:57]} 7. e3 {[%clk 0:02:43]}  O-O {[%clk 0:02:55]} 8. Na3 {[%clk 0:02:43]}  d5 {[%clk 0:02:51]} 9. Be2 {[%clk 0:02:42]}  Nc6 {[%clk 0:02:48]} 10. O-O {[%clk 0:02:41]}  e6 {[%clk 0:02:46]} 11. Rab1 {[%clk 0:02:36]}  Ne7 {[%clk 0:02:43]} 12. Nc2 {[%clk 0:02:32]}  Ng6 {[%clk 0:02:42]} 13. Nce1 {[%clk 0:02:30]}  Bd7 {[%clk 0:02:38]} 14. Nd3 {[%clk 0:02:30]}  cxd4 {[%clk 0:02:38]} 15. cxd4 {[%clk 0:02:25]}  Bb5 {[%clk 0:02:37]} 16. Rfc1 {[%clk 0:02:22]}  Bxd3 {[%clk 0:02:33]} 17. Bxd3 {[%clk 0:02:22]}  Rac8 {[%clk 0:02:26]} 18. g3 {[%clk 0:02:19]}  Bf6 {[%clk 0:02:12]} 19. Rxc8 {[%clk 0:02:17]}  Rxc8 {[%clk 0:02:11]} 20. Rc1 {[%clk 0:02:17]}  Rc6 {[%clk 0:02:12]} 21. Rc2 {[%clk 0:02:13]}  Ne7 {[%clk 0:02:09]} 22. Kg2 {[%clk 0:02:03]}  Nc8 {[%clk 0:02:09]} 23. Rxc6 {[%clk 0:01:57]}  Qxc6 {[%clk 0:02:04]} 24. Qa5 {[%clk 0:01:42]}  Kg7 {[%clk 0:01:59]} 25. h3 {[%clk 0:01:38]}  a6 {[%clk 0:01:56]} 26. Ne5 {[%clk 0:01:24]}  Bxe5 {[%clk 0:01:50]} 27. dxe5 {[%clk 0:01:24]}  d4+ {[%clk 0:01:51]} 28. f3 {[%clk 0:01:04]}  b6 {[%clk 0:01:23]} 29. Qb4 {[%clk 0:00:56]}  dxe3 {[%clk 0:01:18]} 30. Qf4 {[%clk 0:00:56]}  h6 {[%clk 0:01:16]} 31. Qxe3 {[%clk 0:00:56]}  Ne7 {[%clk 0:01:07]} 32. Qd4 {[%clk 0:00:51]}  Qc1 {[%clk 0:00:49]} 33. Bxa6 {[%clk 0:00:45]}  Nc6 {[%clk 0:00:49]} 34. Qc3 {[%clk 0:00:45]}  Qxc3 {[%clk 0:00:47]} 35. bxc3 {[%clk 0:00:45]}  Nxe5 {[%clk 0:00:48]} 36. Bb5 {[%clk 0:00:42]}  Kf6 {[%clk 0:00:38]} 37. f4 {[%clk 0:00:41]}  Ng6 {[%clk 0:00:39]} 38. Kf3 {[%clk 0:00:37]}  e5 {[%clk 0:00:21]} 39. Ke3 {[%clk 0:00:36]}  h5 {[%clk 0:00:20]} 40. Be8 {[%clk 0:00:24]}  Ke7 {[%clk 0:00:12]} 41. Bb5 {[%clk 0:00:24]}  h4 {[%clk 0:00:11]} 42. gxh4 {[%clk 0:00:23]}  exf4+ {[%clk 0:00:11]} 43. Kf3 {[%clk 0:00:23]}  Nxh4+ {[%clk 0:00:06]} 44. Kxf4 {[%clk 0:00:23]}  Kf6 {[%clk 0:00:07]} 45. c4 {[%clk 0:00:21]}  Ng6+ {[%clk 0:00:07]} 46. Kf3 {[%clk 0:00:20]}  Ke5 {[%clk 0:00:08]} 47. Be8 {[%clk 0:00:18]}  Kd4 {[%clk 0:00:05]} 48. Kg3 {[%clk 0:00:15]}  Ne5 {[%clk 0:00:05]} 49. h4 {[%clk 0:00:15]}  Ke3 {[%clk 0:00:05]} 50. h5 {[%clk 0:00:10]}  f4+ {[%clk 0:00:05]} 51. Kh4 {[%clk 0:00:10]}  f3 {[%clk 0:00:05]} 52. c5 {[%clk 0:00:09]}  bxc5 {[%clk 0:00:04]} 53. Bb5 {[%clk 0:00:09]}  c4 {[%clk 0:00:04]} 54. Bc6 {[%clk 0:00:05]}  f2 {[%clk 0:00:02]} 55. Bg2 {[%clk 0:00:05]}  c3 {[%clk 0:00:03]} 56. h6 {[%clk 0:00:05]}  c2 {[%clk 0:00:03]} 57. h7 {[%clk 0:00:05]}  c1=Q {[%clk 0:00:03]} 58. h8=Q {[%clk 0:00:06]}  Ng6+ {[%clk 0:00:03]} 59. Kg5 {[%clk 0:00:05]}  Nxh8 {[%clk 0:00:04]} 60. Kf6 {[%clk 0:00:00]}  f1=Q+ {[%clk 0:00:05]} 0-1


[Site "https://www.chess.com"]